lending/lending_fUSD_20240621
["ID","MTS","AMOUNT","RATE_DAILY","PERIOD"]
[330076661,1718989098794,-3165.23,0.00021917,4]
[330076662,1718989098835,-2038.4,0.00021917,4]
[330076663,1718989098872,-500.0,0.00021917,4]
[330076664,1718989098914,-500.0,0.00021917,4]
[330076665,1718989098952,-583.72986524,0.00021917,4]
[330076667,1718989098990,-584.71,0.00021917,4]
[330076668,1718989099028,-563.5,0.00021917,4]
[330076669,1718989099064,-3628.25,0.00021917,4]
[330076670,1718989099101,-688.89,0.00021917,4]
[330076671,1718989099137,-500.0,0.00021917,4]
[330076672,1718989099174,-847.05,0.00021917,4]
[330076673,1718989099442,-749.86,0.00021917,4]
[330076674,1718989099483,-2002.5,0.00021917,4]
[330076675,1718989099521,-2430.06,0.00021917,4]
[330076676,1718989099559,-1269.72,0.00021917,4]
[330076677,1718989099596,-874.69,0.00021917,4]
[330076678,1718989099633,-500.0,0.00021917,4]
[330076679,1718989099672,-8189.97,0.00021917,4]
[330076680,1718989099716,-500.0,0.00021917,4]
[330076681,1718989099751,-1042.2,0.00021917,4]
[330076682,1718989099787,-2058.83,0.00021917,4]
[330076683,1718989099822,-627.19,0.00021917,4]
[330076684,1718989099863,-2035.04,0.00021917,4]
[330076685,1718989099902,-879.75,0.00021917,4]
[330076686,1718989099942,-500.0,0.00021917,4]
[330076687,1718989099978,-500.0,0.00021917,4]
[330076688,1718989100014,-588.19,0.00021917,4]
[330076689,1718989100049,-3185.38,0.00021917,4]
[330076690,1718989100085,-687.44,0.00021917,4]
[330076691,1718989100121,-2732.8,0.00021917,4]
[330076692,1718989100156,-2819.32,0.00021917,4]
[330076693,1718989100193,-500.0,0.00021917,4]
[330076694,1718989100230,-1597.02,0.00021917,4]
[330076695,1718989100265,-1019.06,0.00021917,4]
[330076696,1718989100301,-811.36,0.00021917,4]
[330076697,1718989100340,-717.66,0.00021917,4]
[330076698,1718989100376,-2334.7,0.00021917,4]
[330076699,1718989100414,-948.09,0.00021917,4]
[330076700,1718989100455,-1858.42,0.00021917,4]
[330076701,1718989100492,-3289.51,0.00021917,4]
[330076702,1718989100528,-500.0,0.00021917,4]
[330076703,1718989100566,-374.42601387,0.00022163,2]
[330076704,1718989100604,-442.40862375,0.00022163,2]
[330076705,1718989100639,-155.0,0.00022163,2]
[330076706,1718989100676,-2488.2907628,0.00022163,2]
[330076707,1718989100713,-151.0,0.00022163,3]
[330076708,1718989100751,-15677.0633925,0.0002218,2]
[330076709,1718989100788,-329218.331242,0.00022181,2]
[330076710,1718989100825,-500.0,0.00022184,2]
[330076711,1718989100875,-1807.21,0.0002219,4]
[330076712,1718989100912,-1166.46,0.0002219,4]
[330076713,1718989100948,-500.0,0.0002219,4]
[330076714,1718989100985,-500.0,0.0002219,4]
[330076715,1718989101022,-1231.82,0.0002219,4]
[330076716,1718989101057,-500.0,0.0002219,4]
[330076717,1718989101092,-1222.66,0.0002219,4]
[330076718,1718989101128,-2408.24,0.0002219,4]
[330076719,1718989101166,-1952.73,0.0002219,4]
[330076720,1718989101201,-731.2,0.0002219,4]
[330076721,1718989101236,-1318.44,0.0002219,4]
[330076722,1718989101271,-2384.38,0.0002219,4]
[330076723,1718989101305,-1865.15,0.0002219,4]
[330076724,1718989101340,-1273.61,0.0002219,4]
[330076725,1718989101375,-1573.02,0.0002219,4]
[330076726,1718989101408,-1161.26,0.0002219,4]
[330076727,1718989101442,-3686.48,0.0002219,4]
[330076728,1718989101480,-1568.43,0.0002219,4]
[330076729,1718989101517,-1484.44,0.0002219,4]
[330076730,1718989101551,-2169.49,0.0002219,4]
[330076731,1718989101588,-1666.27,0.0002219,4]
[330076732,1718989101624,-1593.7,0.0002219,4]
[330076733,1718989101663,-1100.83,0.0002219,4]
[330076734,1718989101705,-1904.12,0.0002219,4]
[330076735,1718989101741,-500.0,0.0002219,4]
[330076736,1718989101777,-2204.4,0.0002219,4]
[330076737,1718989101817,-4655.32,0.0002219,4]
[330076738,1718989101858,-784.36,0.0002219,4]
[330076739,1718989101895,-2198.64,0.0002219,4]
[330076740,1718989101931,-1493.84,0.0002219,4]
[330076741,1718989101969,-2311.6,0.0002219,4]
[330076742,1718989102006,-5650.13,0.0002219,4]
[330076743,1718989102042,-1180.22,0.0002219,4]
[330076744,1718989102077,-1102.65,0.0002219,4]
[330076745,1718989102113,-41618.06,0.0002219,4]
[330076746,1718989102148,-1809.3,0.0002219,4]
[330076747,1718989102185,-2172.22,0.0002219,4]
[330076748,1718989102219,-1370.5,0.0002219,4]
[330076749,1718989102256,-1892.1,0.0002219,4]
[330076750,1718989102293,-500.0,0.0002219,4]
[330076751,1718989102332,-1907.45,0.0002219,4]
[330076752,1718989102370,-1285.38,0.0002219,4]
[330076753,1718989102407,-2770.18,0.0002219,4]
[330076754,1718989102448,-827.57,0.0002219,4]
[330076755,1718989102484,-500.0,0.0002219,4]
[330076756,1718989102518,-2048.02,0.0002219,4]
[330076757,1718989102553,-1309.88,0.0002219,4]
[330076758,1718989102589,-10596.14,0.0002219,4]
[330076759,1718989102627,-2689.65,0.0002219,4]
[330076760,1718989102662,-1215.85,0.0002219,4]
[330076761,1718989102698,-1604.86,0.0002219,4]
[330076762,1718989102733,-5597.6,0.0002219,4]
[330076763,1718989102768,-1061.99,0.0002219,4]
[330076764,1718989102803,-500.0,0.0002219,4]
[330076765,1718989102840,-3307.05,0.0002219,4]
[330076766,1718989102879,-500.0,0.0002219,4]
[330076767,1718989102917,-728.36,0.0002219,4]
[330076768,1718989102963,-3237.2,0.0002219,4]
[330076769,1718989103000,-500.0,0.0002219,4]
[330076770,1718989103037,-500.0,0.0002219,4]
[330076771,1718989103074,-1212.19140625,0.0002219,2]
[330076772,1718989103110,-500.0,0.0002219,4]
[330076773,1718989103146,-1333.67,0.0002219,4]
[330076774,1718989103182,-1139.72345623,0.0002219,2]
[330076775,1718989103219,-500.0,0.00022191,4]
[330076776,1718989103253,-741.46,0.00022191,4]
[330076777,1718989103289,-500.0,0.00022191,4]
[330076778,1718989103325,-500.0,0.00022191,4]
[330076779,1718989103361,-500.0,0.00022191,4]
[330076780,1718989103396,-500.0,0.00022191,4]
[330076781,1718989103432,-500.0,0.00022191,4]
[330076782,1718989103473,-500.0,0.00022191,4]
[330076783,1718989103512,-600.75,0.00022191,4]
[330076784,1718989103552,-500.0,0.00022191,4]
[330076785,1718989103591,-626.89,0.00022191,4]
[330076786,1718989103628,-500.0,0.00022191,4]
[330076787,1718989103666,-630.23,0.00022191,4]
[330076788,1718989103702,-667.87,0.00022191,4]
[330076789,1718989103963,-1297.45,0.00022191,4]
[330076790,1718989104001,-500.0,0.00022191,4]
[330076791,1718989104041,-500.0,0.00022191,4]
[330076792,1718989104077,-500.0,0.00022191,4]
[330076793,1718989104117,-1399.32,0.00022191,4]
[330076794,1718989104163,-500.0,0.00022191,4]
[330076795,1718989104205,-500.0,0.00022191,4]
[330076796,1718989104244,-500.0,0.00022191,4]
[330076797,1718989104282,-500.0,0.00022191,4]
[330076798,1718989104323,-539.74948828,0.00022191,4]
[330076799,1718989104362,-900.37,0.00022191,4]
[330076800,1718989104401,-742.99,0.00022191,4]
[330076801,1718989104443,-730.15,0.00022191,4]
[330076802,1718989104482,-500.0,0.00022191,4]
[330076803,1718989104520,-1161.0,0.00022191,4]
[330076804,1718989104558,-185.19970642,0.00022191,4]
[330076805,1718989104595,-968.47,0.00022191,4]
[330076806,1718989104635,-500.0,0.00022191,4]
[330076807,1718989104671,-324.75633684,0.00022191,4]
[330076808,1718989104708,-578.7,0.00022191,4]
[330076809,1718989104750,-210.03707581,0.00022191,4]
[330076810,1718989104787,-500.0,0.00022191,4]
[330076811,1718989104825,-500.0,0.00022191,4]
[330076812,1718989104868,-500.0,0.00022191,4]
[330076813,1718989104909,-948.5,0.00022191,4]
[330076814,1718989104946,-500.0,0.00022191,4]
[330076815,1718989104982,-500.0,0.00022191,4]
[330076816,1718989105021,-532.92,0.00022191,4]
[330076817,1718989105059,-500.0,0.00022191,4]
[330076818,1718989105096,-500.0,0.00022191,4]
[330076819,1718989105132,-652.53,0.00022191,4]
[330076820,1718989105169,-806.48,0.00022191,4]
[330076821,1718989105206,-500.0,0.00022191,4]
[330076822,1718989105244,-500.0,0.00022191,4]
[330076823,1718989105280,-556.94,0.00022191,4]
[330076824,1718989105318,-500.0,0.00022191,4]
[330076825,1718989105365,-630.9,0.00022191,4]
[330076826,1718989105404,-825.66,0.00022191,4]
[330076827,1718989105447,-500.0,0.00022191,4]
[330076828,1718989105492,-963.53,0.00022191,4]
[330076829,1718989105531,-697.99,0.00022191,4]
[330076830,1718989105570,-1424.78,0.00022191,4]
[330076831,1718989105608,-500.0,0.00022191,4]
[330076832,1718989105647,-500.0,0.00022191,4]
[330076833,1718989105687,-1122.75,0.00022191,4]
[330076834,1718989105731,-2613.66,0.00022191,4]
[330076835,1718989105770,-857.63,0.00022191,4]
[330076836,1718989105813,-500.0,0.00022191,4]
[330076837,1718989105855,-727.53,0.00022191,4]
[330076838,1718989105898,-517.23,0.00022191,4]
[330076839,1718989105944,-500.0,0.00022191,4]
[330076840,1718989105986,-961.15,0.00022191,4]
[330076841,1718989106029,-669.82,0.00022191,4]
[330076842,1718989106070,-500.0,0.00022191,4]
[330076843,1718989106110,-745.8,0.00022191,4]
[330076844,1718989106149,-500.0,0.00022191,4]
[330076845,1718989106196,-1381.93,0.00022191,4]
[330076846,1718989106238,-500.0,0.00022191,4]
[330076847,1718989106280,-500.0,0.00022191,4]
[330076848,1718989106320,-500.0,0.00022191,4]
[330076849,1718989106362,-500.0,0.00022191,4]
[330076850,1718989106407,-500.0,0.00022191,4]
[330076851,1718989106450,-551.78,0.00022191,4]
[330076852,1718989106489,-791.72,0.00022191,4]
[330076853,1718989106529,-1331.83,0.00022191,4]
[330076854,1718989106568,-1073.22,0.00022191,4]
[330076855,1718989106606,-558.32,0.00022191,4]
[330076856,1718989106642,-523.0,0.00022191,4]
[330076857,1718989106681,-500.0,0.00022191,4]
[330076858,1718989106722,-1338.07,0.00022191,4]
[330076859,1718989106759,-263.35684019,0.00022191,4]
[330076860,1718989106797,-500.0,0.00022191,4]
[330076861,1718989106836,-500.0,0.00022191,4]
[330076862,1718989106877,-567.98,0.00022191,4]
[330076863,1718989106918,-500.0,0.00022191,4]
[330076864,1718989106962,-1007.63,0.00022191,4]
[330076865,1718989107002,-734.67,0.00022191,4]
[330076866,1718989107042,-500.0,0.00022191,4]
[330076867,1718989107081,-902.48,0.00022191,4]
[330076868,1718989107120,-592.11,0.00022191,4]
[330076869,1718989107158,-500.0,0.00022191,4]
[330076870,1718989107196,-500.0,0.00022191,4]
[330076871,1718989107235,-500.0,0.00022191,4]
[330076872,1718989107273,-1084.11,0.00022191,4]
[330076873,1718989107310,-500.0,0.00022191,4]
[330076874,1718989107347,-628.67,0.00022191,4]
[330076875,1718989107384,-500.0,0.00022191,4]
[330076876,1718989107424,-1441.11,0.00022191,4]
[330076877,1718989107464,-500.0,0.00022191,4]
[330076878,1718989107505,-1112.98,0.00022191,4]
[330076879,1718989107547,-500.0,0.00022191,4]
[330076880,1718989107586,-500.0,0.00022191,4]
[330076881,1718989107627,-250.0,0.00022191,4]
[330076882,1718989107673,-500.0,0.00022191,4]
[330076883,1718989107718,-500.0,0.00022191,4]
[330076884,1718989107760,-613.86,0.00022191,4]
[330076885,1718989107802,-669.47,0.00022191,4]
[330076886,1718989107843,-500.0,0.00022191,4]
[330076887,1718989107885,-206.18403941,0.00022191,4]
[330076888,1718989107925,-1300.08,0.00022191,4]
[330076889,1718989107964,-500.0,0.00022191,4]
[330076890,1718989108025,-500.0,0.00022191,4]
[330076891,1718989108068,-500.0,0.00022191,4]
[330076892,1718989108108,-500.0,0.00022191,4]
[330076893,1718989108149,-500.0,0.00022191,4]
[330076894,1718989108192,-1066.61,0.00022191,4]
[330076895,1718989108231,-881.23,0.00022191,4]
[330076896,1718989108270,-952.61,0.00022191,4]
[330076897,1718989108311,-500.0,0.00022191,2]
[330076898,1718989108351,-500.0,0.00022191,4]
[330076899,1718989108390,-500.0,0.00022191,4]
[330076900,1718989108430,-1213.27,0.00022191,4]
[330076901,1718989108471,-785.84,0.00022191,4]
[330076902,1718989108510,-500.0,0.00022191,4]
[330076903,1718989108550,-815.6,0.00022191,4]
[330076904,1718989108592,-816.06,0.00022191,4]
[330076905,1718989108632,-500.0,0.00022191,4]
[330076906,1718989109092,-781.94,0.00022191,4]
[330076907,1718989109131,-742.71,0.00022191,4]
[330076908,1718989109168,-500.0,0.00022191,4]
[330076909,1718989109205,-500.0,0.00022191,4]
[330076910,1718989109241,-920.07,0.00022191,4]
[330076911,1718989109277,-500.0,0.00022191,4]
[330076912,1718989109314,-500.0,0.00022191,4]
[330076913,1718989109351,-168.23149369,0.00022191,4]
[330076914,1718989109388,-935.89,0.00022191,4]
[330076915,1718989109424,-500.0,0.00022191,4]
[330076916,1718989109462,-500.0,0.00022191,4]
[330076917,1718989109498,-512.1,0.00022191,4]
[330076918,1718989109536,-500.0,0.00022191,4]
[330076919,1718989109574,-500.0,0.00022191,4]
[330076920,1718989109609,-736.93,0.00022191,4]
[330076921,1718989109646,-954.31,0.00022191,4]
[330076922,1718989109684,-500.0,0.00022191,4]
[330076923,1718989109721,-556.99,0.00022191,4]
[330076924,1718989109761,-527.62,0.00022191,4]
[330076925,1718989109798,-887.18,0.00022191,4]
[330076926,1718989109839,-500.0,0.00022191,4]
[330076927,1718989109877,-500.0,0.00022191,4]
[330076928,1718989109913,-500.0,0.00022191,4]
[330076929,1718989109950,-558.12,0.00022191,4]
[330076930,1718989109987,-500.0,0.00022191,4]
[330076931,1718989110024,-500.0,0.00022191,4]
[330076932,1718989110062,-196.6022275,0.00022191,4]
[330076933,1718989110098,-652.29,0.00022191,4]
[330076934,1718989110135,-500.0,0.00022191,4]
[330076935,1718989110175,-840.32,0.00022191,4]
[330076936,1718989110217,-847.29,0.00022191,4]
[330076937,1718989110257,-438.77097735,0.00022191,4]
[330076938,1718989110296,-500.0,0.00022191,4]
[330076939,1718989110333,-500.0,0.00022191,4]
[330076940,1718989110371,-500.0,0.00022191,4]
[330076941,1718989110413,-853.36,0.00022191,4]
[330076942,1718989110451,-500.0,0.00022191,4]
[330076943,1718989110487,-500.0,0.00022191,4]
[330076944,1718989110522,-500.0,0.00022191,4]
[330076945,1718989110558,-1081.0,0.00022191,4]
[330076946,1718989110594,-500.0,0.00022191,4]
[330076947,1718989110630,-500.0,0.00022191,4]
[330076948,1718989110666,-500.0,0.00022191,4]
[330076949,1718989110703,-500.0,0.00022191,4]
[330076950,1718989110741,-500.0,0.00022191,4]
[330076951,1718989110779,-500.0,0.00022191,4]
[330076952,1718989110818,-500.0,0.00022191,4]
[330076953,1718989110854,-500.0,0.00022191,4]
[330076954,1718989110899,-931.63,0.00022191,4]
[330076955,1718989110947,-500.0,0.00022191,4]
[330076956,1718989110995,-762.93,0.00022191,4]
[330076957,1718989111041,-500.0,0.00022191,4]
[330076958,1718989111087,-673.38,0.00022191,4]
[330076959,1718989111133,-500.0,0.00022191,4]
[330076960,1718989111171,-500.0,0.00022191,4]
[330076961,1718989111208,-706.69,0.00022191,4]
[330076962,1718989111244,-288.06017294,0.00022191,4]
[330076963,1718989111283,-612.35,0.00022191,4]
[330076964,1718989111320,-500.0,0.00022191,4]
[330076965,1718989111358,-500.0,0.00022191,4]
[330076966,1718989111396,-1430.27,0.00022191,4]
[330076967,1718989111432,-159.7106054,0.00022191,4]
[330076968,1718989111471,-987.57,0.00022191,4]
[330076969,1718989111508,-500.0,0.00022191,4]
[330076970,1718989111544,-627.93,0.00022191,4]
[330076971,1718989111579,-500.0,0.00022191,4]
[330076972,1718989111615,-617.49,0.00022191,4]
[330076973,1718989111651,-500.0,0.00022191,4]
[330076974,1718989111686,-1185.05,0.00022191,4]
[330076975,1718989111728,-500.0,0.00022191,4]
[330076976,1718989111765,-500.0,0.00022191,4]
[330076977,1718989111802,-713.85,0.00022191,4]
[330076978,1718989111841,-500.0,0.00022191,4]
[330076979,1718989111880,-595.68,0.00022191,4]
[330076980,1718989111920,-508.4,0.00022191,4]
[330076981,1718989111958,-631.99,0.00022191,4]
[330076982,1718989111994,-621.54526222,0.00022191,4]
[330076983,1718989112033,-1075.92,0.00022191,4]
[330076984,1718989112070,-500.0,0.00022191,4]
[330076985,1718989112106,-500.0,0.00022191,4]
[330076986,1718989112140,-500.0,0.00022191,4]
[330076987,1718989112178,-605.96,0.00022191,4]
[330076988,1718989112216,-361.99944277,0.00022191,4]
[330076989,1718989112251,-500.0,0.00022191,4]
[330076990,1718989112286,-511.82,0.00022191,4]
[330076991,1718989112322,-500.0,0.00022191,4]
[330076992,1718989112358,-500.0,0.00022191,4]
[330076993,1718989112393,-1346.43,0.00022191,4]
[330076994,1718989112429,-500.0,0.00022191,4]
[330076995,1718989112466,-821.04,0.00022191,4]
[330076996,1718989112502,-318.56263478,0.00022191,4]
[330076997,1718989112536,-500.0,0.00022191,4]
[330076998,1718989112573,-500.0,0.00022191,4]
[330076999,1718989112611,-500.0,0.00022191,4]
[330077000,1718989112647,-500.0,0.00022191,4]
[330077001,1718989112683,-500.0,0.00022191,4]
[330077002,1718989112719,-500.0,0.00022191,4]
[330077003,1718989112754,-1223.11,0.00022191,4]
[330077004,1718989112789,-500.0,0.00022191,4]
[330077005,1718989112826,-234.55127171,0.00022191,4]
[330077006,1718989112865,-500.0,0.00022191,4]
[330077007,1718989112903,-500.0,0.00022191,4]
[330077008,1718989112943,-540.42,0.00022191,4]
[330077009,1718989112979,-500.0,0.00022191,4]
[330077010,1718989113015,-500.0,0.00022191,4]
[330077011,1718989113050,-629.80205907,0.00022191,4]
[330077012,1718989113086,-577.17,0.00022191,4]
[330077013,1718989113123,-1010.38,0.00022191,4]
[330077014,1718989113158,-500.0,0.00022191,4]
[330077015,1718989113196,-500.0,0.00022191,4]
[330077016,1718989113232,-713.59,0.00022191,4]
[330077017,1718989113270,-500.0,0.00022191,4]
[330077018,1718989113305,-673.9,0.00022191,4]
[330077019,1718989113342,-500.0,0.00022191,4]
[330077020,1718989113379,-532.91585955,0.00022191,4]
[330077021,1718989113418,-595.96,0.00022191,4]
[330077022,1718989113455,-500.0,0.00022191,4]
[330077023,1718989113723,-500.0,0.00022191,4]
[330077024,1718989113763,-780.85,0.00022191,4]
[330077025,1718989113799,-500.0,0.00022191,4]
[330077026,1718989113841,-2230.36,0.00022191,4]
[330077027,1718989113886,-812.96,0.00022191,4]
[330077028,1718989113934,-342.58470552,0.00022191,4]
[330077029,1718989113981,-500.0,0.00022191,4]
[330077030,1718989114022,-500.0,0.00022191,4]
[330077031,1718989114063,-583.22,0.00022191,4]
[330077032,1718989114104,-500.0,0.00022191,4]
[330077033,1718989114140,-213.59567466,0.00022191,4]
[330077034,1718989114181,-527.6,0.00022191,4]
[330077035,1718989114231,-366.73559775,0.00022191,4]
[330077036,1718989114276,-500.0,0.00022191,4]
[330077037,1718989114318,-500.0,0.00022191,4]
[330077038,1718989114360,-716.45,0.00022191,4]
[330077039,1718989114402,-1675.29,0.00022191,4]
[330077040,1718989114449,-500.0,0.00022191,4]
[330077041,1718989114489,-517.46596701,0.00022191,4]
[330077042,1718989114529,-2341.37,0.00022191,4]
[330077043,1718989114568,-904.15,0.00022191,4]
[330077044,1718989114609,-500.0,0.00022191,4]
[330077045,1718989114649,-737.08,0.00022191,4]
[330077046,1718989114686,-362.5278045,0.00022191,4]
[330077047,1718989114726,-500.0,0.00022191,4]
[330077048,1718989114764,-500.0,0.00022191,4]
[330077049,1718989114802,-500.0,0.00022191,4]
[330077050,1718989114848,-854.49,0.00022191,4]
[330077051,1718989114893,-1414.89,0.00022191,4]
[330077052,1718989114940,-500.0,0.00022191,4]
[330077053,1718989114989,-523.56,0.00022191,4]
[330077054,1718989115037,-500.0,0.00022191,4]
[330077055,1718989115083,-500.0,0.00022191,4]
[330077056,1718989115121,-527.99,0.00022191,4]
[330077057,1718989115160,-500.0,0.00022191,4]
[330077058,1718989115201,-500.0,0.00022191,4]
[330077059,1718989115238,-500.0,0.00022191,4]
[330077060,1718989115274,-1478.35,0.00022191,4]
[330077061,1718989115309,-1641.43,0.00022191,4]
[330077062,1718989115344,-388.83641249,0.00022191,4]
[330077063,1718989115378,-638.94,0.00022191,4]
[330077064,1718989115412,-1102.1,0.00022191,4]
[330077065,1718989115450,-503.09,0.00022191,4]
[330077066,1718989115485,-500.0,0.00022191,4]
[330077067,1718989115524,-295.53884013,0.00022191,4]
[330077068,1718989115562,-598.0,0.00022191,4]
[330077069,1718989115600,-500.0,0.00022191,4]
[330077070,1718989115637,-842.59,0.00022191,4]
[330077071,1718989115672,-500.0,0.00022191,4]
[330077072,1718989115709,-500.0,0.00022191,4]
[330077073,1718989115746,-5000.0,0.00022191,4]
[330077074,1718989115782,-1208.66,0.00022191,4]
[330077075,1718989115817,-531.23467332,0.00022191,4]
[330077076,1718989115858,-745.93,0.00022191,4]
[330077077,1718989115897,-1166.84,0.00022191,4]
[330077078,1718989115935,-500.0,0.00022191,4]
[330077079,1718989115970,-500.0,0.00022191,7]
[330077080,1718989116006,-500.0,0.00022191,4]
[330077081,1718989116043,-675.87,0.00022191,4]
[330077082,1718989116085,-500.0,0.00022191,4]
[330077083,1718989116120,-500.0,0.00022191,4]
[330077084,1718989116156,-1329.84,0.00022191,4]
[330077085,1718989116192,-500.0,0.00022191,4]
[330077086,1718989116229,-500.0,0.00022191,4]
[330077087,1718989116265,-1110.3,0.00022191,4]
[330077088,1718989116300,-1244.41,0.00022191,4]
[330077089,1718989116336,-1120.29,0.00022191,4]
[330077090,1718989116374,-529.2,0.00022191,4]
[330077091,1718989116410,-625.53,0.00022191,4]
[330077092,1718989116449,-1049.53,0.00022191,4]
[330077093,1718989116487,-500.0,0.00022191,4]
[330077094,1718989116524,-500.0,0.00022191,4]
[330077095,1718989116562,-500.0,0.00022191,4]
[330077096,1718989116597,-500.0,0.00022191,4]
[330077097,1718989116633,-283.70749908,0.00022191,4]
[330077098,1718989116670,-500.0,0.00022191,4]
[330077099,1718989116711,-500.0,0.00022191,4]
[330077100,1718989116748,-500.0,0.00022191,4]
[330077101,1718989116787,-636.83866538,0.00022191,4]
[330077102,1718989116830,-500.0,0.00022191,4]
[330077103,1718989116874,-500.0,0.00022191,4]
[330077104,1718989116917,-500.0,0.00022191,4]
[330077105,1718989116958,-1552.35,0.00022191,4]
[330077106,1718989116999,-918.31,0.00022191,4]
[330077107,1718989117040,-536.86,0.00022191,4]
[330077108,1718989117079,-500.0,0.00022191,4]
[330077109,1718989117118,-500.0,0.00022191,4]
[330077110,1718989117159,-600.92,0.00022191,4]
[330077111,1718989117199,-2593.5,0.00022191,4]
[330077112,1718989117239,-573.57,0.00022191,4]
[330077113,1718989117274,-614.38,0.00022191,4]
[330077114,1718989117310,-197.78969064,0.00022191,2]
[330077115,1718989117346,-500.0,0.00022191,4]
[330077116,1718989117383,-500.0,0.00022191,4]
[330077117,1718989117420,-500.0,0.00022191,4]
[330077118,1718989117458,-500.0,0.00022191,4]
[330077119,1718989117495,-500.0,0.00022191,4]
[330077120,1718989117530,-500.0,0.00022191,4]
[330077121,1718989117565,-500.0,0.00022191,4]
[330077122,1718989117600,-1358.67,0.00022191,4]
[330077123,1718989117636,-1704.8,0.00022191,4]
[330077124,1718989117672,-500.0,0.00022191,2]
[330077125,1718989117705,-789.83,0.00022191,4]
[330077126,1718989117741,-500.0,0.00022191,4]
[330077127,1718989117777,-500.0,0.00022191,4]
[330077128,1718989117813,-580.39,0.00022191,4]
[330077129,1718989117849,-500.0,0.00022191,4]
[330077130,1718989117887,-1727.55,0.00022191,4]
[330077131,1718989117926,-1153.51,0.00022191,4]
[330077132,1718989117965,-888.36,0.00022191,4]
[330077133,1718989118001,-500.0,0.00022191,4]
[330077134,1718989118042,-559.95,0.00022191,4]
[330077135,1718989118078,-1728.03,0.00022191,4]
[330077136,1718989118113,-500.0,0.00022191,4]
[330077137,1718989118153,-840.1,0.00022191,4]
[330077138,1718989118189,-551.97,0.00022191,4]
[330077139,1718989118459,-500.0,0.00022191,4]
[330077140,1718989118500,-500.0,0.00022191,4]
[330077141,1718989118542,-287.36,0.00022191,4]
[330077142,1718989118581,-500.0,0.00022191,4]
[330077143,1718989118620,-500.0,0.00022191,4]
[330077144,1718989118658,-500.0,0.00022191,4]
[330077145,1718989118697,-500.0,0.00022191,4]
[330077146,1718989118737,-500.0,0.00022191,4]
[330077147,1718989118776,-514.36,0.00022191,4]
[330077148,1718989118814,-500.0,0.00022191,4]
[330077149,1718989118853,-500.0,0.00022191,4]
[330077150,1718989118891,-500.0,0.00022191,4]
[330077151,1718989118928,-1809.78,0.00022191,4]
[330077152,1718989118966,-1193.59,0.00022191,4]
[330077153,1718989119005,-710.42,0.00022191,4]
[330077154,1718989119052,-952.28,0.00022191,4]
[330077155,1718989119092,-788.5,0.00022191,4]
[330077156,1718989119132,-921.65,0.00022191,4]
[330077157,1718989119171,-738.08,0.00022191,4]
[330077158,1718989119213,-500.0,0.00022191,4]
[330077159,1718989119256,-664.19,0.00022191,4]
[330077160,1718989119296,-1125.8,0.00022191,4]
[330077161,1718989119336,-500.0,0.00022191,4]